fUSD/lending_fUSD_20250105
["ID","MTS","AMOUNT","RATE_DAILY","PERIOD"]
[347760564,1736095838256,-500.0,8.49e-05,2]
[347760566,1736095838266,-662.17,8.49e-05,2]
[347760568,1736095838276,-500.0,8.49e-05,2]
[347760570,1736095838285,-500.0,8.49e-05,2]
[347760572,1736095838295,-1117.81,8.49e-05,2]
[347760574,1736095838304,-564.52,8.49e-05,2]
[347760576,1736095838313,-500.0,8.49e-05,2]
[347760578,1736095838322,-500.0,8.49e-05,2]
[347760580,1736095838331,-883.45,8.49e-05,2]
[347760582,1736095838341,-500.0,8.49e-05,2]
[347760584,1736095838350,-500.0,8.49e-05,2]
[347760586,1736095838360,-500.0,8.49e-05,2]
[347760588,1736095838369,-487.264111,8.49e-05,2]
[347760592,1736095838394,-12.735889,8.49e-05,2]
[347760594,1736095838404,-500.0,8.49e-05,2]
[347760596,1736095838413,-500.0,8.49e-05,2]
[347760598,1736095838422,-252.0094457,8.49e-05,2]
[347760600,1736095838432,-500.0,8.49e-05,2]
[347760602,1736095838441,-500.0,8.49e-05,2]
[347760604,1736095838451,-2939.35,8.49e-05,2]
[347760606,1736095838460,-500.0,8.49e-05,2]
[347760607,1736095838470,-951.44,8.49e-05,2]
[347760610,1736095838480,-500.0,8.49e-05,2]
[347760611,1736095838489,-500.0,8.49e-05,2]
[347760614,1736095838500,-500.0,8.49e-05,2]
[347760615,1736095838510,-500.0,8.49e-05,2]
[347760617,1736095838519,-500.0,8.49e-05,2]
[347760619,1736095838529,-500.0,8.49e-05,2]
[347760622,1736095838539,-500.0,8.49e-05,2]
[347760624,1736095838549,-3218.91,8.491e-05,2]
[347760626,1736095838558,-1847.93,8.491e-05,2]
[347760628,1736095838567,-3406.35,8.491e-05,2]
[347760630,1736095838578,-548.05,8.491e-05,2]
[347760631,1736095838587,-3997.2,8.491e-05,2]
[347760634,1736095838597,-500.0,8.491e-05,2]
[347760636,1736095838607,-500.0,8.491e-05,2]
[347760638,1736095838617,-697.66,8.491e-05,2]
[347760640,1736095838627,-156.995149,8.492e-05,2]
[347760642,1736095838636,-500.0,8.492e-05,2]
[347760643,1736095838646,-500.0,8.492e-05,2]
[347760645,1736095838655,-500.0,8.492e-05,2]
[347760647,1736095838665,-500.0,8.492e-05,2]
[347760649,1736095838674,-585.2,8.492e-05,2]
[347760651,1736095838683,-500.0,8.492e-05,2]
[347760653,1736095838693,-500.0,8.492e-05,2]
[347760655,1736095838703,-500.0,8.492e-05,2]
[347760657,1736095838712,-500.0,8.492e-05,2]
[347760659,1736095838723,-500.0,8.492e-05,2]
[347760661,1736095838732,-500.0,8.492e-05,2]
[347760663,1736095838742,-500.0,8.492e-05,2]
[347760665,1736095838752,-542.45,8.492e-05,2]
[347760667,1736095838761,-500.0,8.492e-05,2]
[347760669,1736095838771,-500.0,8.492e-05,2]
[347760671,1736095838781,-509.74,8.492e-05,2]
[347760673,1736095838791,-500.0,8.492e-05,2]
[347760675,1736095838803,-500.0,8.492e-05,2]
[347760677,1736095838812,-500.0,8.492e-05,2]
[347760679,1736095838822,-500.0,8.492e-05,2]
[347760681,1736095838831,-500.0,8.492e-05,2]
[347760683,1736095838841,-500.0,8.492e-05,2]
[347760684,1736095838851,-500.0,8.492e-05,2]
[347760687,1736095838861,-500.0,8.492e-05,2]
[347760689,1736095838870,-591.3,8.492e-05,2]
[347760691,1736095838881,-500.0,8.492e-05,2]
[347760693,1736095838890,-500.0,8.492e-05,2]
[347760695,1736095838903,-500.0,8.492e-05,2]
[347760697,1736095838912,-581.38,8.492e-05,2]
[347760699,1736095838922,-500.0,8.492e-05,2]
[347760701,1736095838931,-500.0,8.492e-05,2]
[347760703,1736095838940,-500.0,8.492e-05,2]
[347760705,1736095838950,-500.0,8.492e-05,2]
[347760707,1736095838959,-500.0,8.492e-05,2]
[347760709,1736095838968,-500.0,8.492e-05,2]
[347760710,1736095838977,-500.0,8.492e-05,2]
[347760713,1736095838987,-511.92,8.492e-05,2]
[347760714,1736095838999,-500.0,8.492e-05,2]
[347760716,1736095839009,-500.0,8.492e-05,2]
[347760719,1736095839018,-500.0,8.492e-05,2]
[347760721,1736095839028,-500.0,8.492e-05,2]
[347760723,1736095839037,-500.0,8.492e-05,2]
[347760725,1736095839046,-500.0,8.492e-05,2]
[347760726,1736095839056,-500.0,8.492e-05,2]
[347760728,1736095839066,-885.2,8.492e-05,2]
[347760730,1736095839075,-571.68,8.492e-05,2]
[347760732,1736095839085,-500.0,8.492e-05,2]
[347760735,1736095839095,-500.0,8.492e-05,2]
[347760736,1736095839104,-500.0,8.492e-05,2]
[347760739,1736095839113,-500.0,8.492e-05,2]
[347760741,1736095839123,-565.85,8.492e-05,2]
[347760742,1736095839133,-500.0,8.492e-05,2]
[347760745,1736095839143,-500.0,8.492e-05,2]
[347760747,1736095839153,-500.0,8.492e-05,2]
[347760749,1736095839162,-500.0,8.492e-05,2]
[347760750,1736095839171,-584.68,8.492e-05,2]
[347760752,1736095839180,-500.0,8.492e-05,2]
[347760754,1736095839189,-500.0,8.492e-05,2]
[347760755,1736095839198,-500.0,8.492e-05,2]
[347760757,1736095839207,-500.0,8.492e-05,2]
[347760758,1736095839216,-500.0,8.492e-05,2]
[347760760,1736095839226,-500.0,8.492e-05,2]
[347760762,1736095839236,-500.0,8.492e-05,2]
[347760764,1736095839246,-500.0,8.492e-05,2]
[347760765,1736095839257,-500.0,8.492e-05,2]
[347760767,1736095839266,-500.0,8.492e-05,2]
[347760769,1736095839275,-812.34,8.492e-05,2]
[347760771,1736095839285,-500.0,8.492e-05,2]
[347760772,1736095839294,-500.0,8.492e-05,2]
[347760774,1736095839303,-516.84,8.492e-05,2]
[347760775,1736095839312,-500.0,8.492e-05,2]
[347760777,1736095839321,-716.19,8.492e-05,2]
[347760779,1736095839330,-500.0,8.492e-05,2]
[347760780,1736095839339,-500.0,8.492e-05,2]
[347760782,1736095839349,-500.0,8.492e-05,2]
[347760784,1736095839358,-671.8,8.492e-05,2]
[347760785,1736095839367,-500.0,8.492e-05,2]
[347760787,1736095839376,-500.0,8.492e-05,2]
[347760789,1736095839385,-154.45454748,8.492e-05,2]
[347760791,1736095839394,-500.0,8.492e-05,2]
[347760792,1736095839405,-731.37,8.492e-05,2]
[347760794,1736095839414,-500.0,8.492e-05,2]
[347760796,1736095839424,-689.75,8.492e-05,2]
[347760798,1736095839434,-500.0,8.492e-05,2]
[347760799,1736095839443,-500.0,8.492e-05,2]
[347760801,1736095839453,-500.0,8.492e-05,2]
[347760803,1736095839463,-500.0,8.492e-05,2]
[347760805,1736095839473,-500.0,8.492e-05,2]
[347760806,1736095839483,-733.8,8.492e-05,2]
[347760808,1736095839494,-530.73,8.492e-05,2]
[347760810,1736095839504,-570.3,8.492e-05,2]
[347760812,1736095839514,-500.0,8.492e-05,2]
[347760813,1736095839523,-500.0,8.492e-05,2]
[347760815,1736095839533,-500.0,8.492e-05,2]
[347760817,1736095839542,-555.81,8.492e-05,2]
[347760820,1736095839552,-500.0,8.492e-05,2]
[347760821,1736095839561,-500.0,8.492e-05,2]
[347760823,1736095839572,-500.0,8.492e-05,2]
[347760825,1736095839582,-687.33,8.492e-05,2]
[347760827,1736095839592,-940.82,8.492e-05,2]
[347760828,1736095839601,-551.91,8.492e-05,2]
[347760831,1736095839611,-635.28,8.492e-05,2]
[347760834,1736095839620,-500.0,8.492e-05,2]
[347760835,1736095839629,-1073.58,8.492e-05,2]
[347760837,1736095839640,-1082.22,8.492e-05,2]
[347760839,1736095839649,-548.37,8.492e-05,2]
[347760841,1736095839660,-1388.69,8.492e-05,2]
[347760843,1736095839669,-500.0,8.492e-05,2]
[347760845,1736095839679,-676.35,8.492e-05,2]
[347760847,1736095839689,-500.0,8.492e-05,2]
[347760849,1736095839698,-550.27,8.492e-05,2]
[347760851,1736095839707,-1265.21,8.492e-05,2]
[347760852,1736095839716,-792.94,8.492e-05,2]
[347760854,1736095839726,-1771.38,8.492e-05,2]
[347760856,1736095839736,-500.0,8.492e-05,2]
[347760857,1736095839747,-646.75,8.492e-05,2]
[347760859,1736095839756,-500.0,8.492e-05,2]
[347760861,1736095839766,-687.89,8.492e-05,2]
[347760864,1736095839776,-3830.35,8.492e-05,2]
[347760866,1736095839785,-500.0,8.492e-05,2]
[347760867,1736095839795,-583.19,8.492e-05,2]
[347760869,1736095839809,-500.0,8.492e-05,2]
[347760871,1736095839819,-1533.34,8.492e-05,2]
[347760873,1736095839829,-500.0,8.492e-05,2]
[347760874,1736095839839,-500.0,8.492e-05,2]
[347760876,1736095839849,-5195.87,8.492e-05,2]
[347760878,1736095839859,-2256.91,8.492e-05,2]
[347760880,1736095839869,-635.6,8.492e-05,2]
[347760882,1736095839879,-500.0,8.492e-05,2]
[347760884,1736095839889,-500.0,8.493e-05,2]
[347760886,1736095839900,-1194.12,8.493e-05,2]
[347760887,1736095839909,-500.0,8.493e-05,2]
[347760889,1736095839919,-500.0,8.493e-05,2]
[347760891,1736095839928,-500.0,8.493e-05,2]
[347760893,1736095839937,-500.0,8.493e-05,2]
[347760895,1736095839946,-515.27,8.493e-05,2]
[347760896,1736095839956,-500.0,8.493e-05,2]
[347760898,1736095839966,-500.0,8.493e-05,2]
[347760900,1736095839977,-500.0,8.493e-05,2]
[347760902,1736095839987,-898.06,8.493e-05,2]
[347760904,1736095839999,-500.0,8.493e-05,2]
[347760906,1736095840009,-500.0,8.493e-05,2]
[347760908,1736095840020,-500.0,8.493e-05,2]
[347760910,1736095840029,-500.0,8.493e-05,2]
[347760911,1736095840038,-500.0,8.493e-05,2]
[347760913,1736095840048,-500.0,8.493e-05,2]
[347760915,1736095840057,-872.3,8.493e-05,2]
[347760917,1736095840067,-500.0,8.493e-05,2]
[347760919,1736095840076,-500.0,8.493e-05,2]
[347760920,1736095840085,-500.0,8.493e-05,2]
[347760922,1736095840095,-907.22,8.493e-05,2]
[347760924,1736095840104,-500.0,8.493e-05,2]
[347760926,1736095840113,-500.0,8.493e-05,2]
[347760928,1736095840122,-327.0483646,8.493e-05,2]
[347760930,1736095840131,-500.0,8.493e-05,2]
[347760931,1736095840141,-500.0,8.493e-05,2]
[347760933,1736095840150,-1000.0,8.493e-05,2]
[347760935,1736095840160,-500.0,8.493e-05,2]
[347760937,1736095840169,-500.0,8.493e-05,2]
[347760939,1736095840179,-500.0,8.493e-05,2]
[347760940,1736095840188,-664.88,8.493e-05,2]
[347760942,1736095840197,-500.0,8.493e-05,2]
[347760944,1736095840207,-500.0,8.493e-05,2]
[347760946,1736095840217,-500.0,8.493e-05,2]
[347760948,1736095840226,-797.13,8.493e-05,2]
[347760950,1736095840236,-500.0,8.493e-05,2]
[347760951,1736095840246,-500.0,8.493e-05,2]
[347760953,1736095840255,-500.0,8.493e-05,2]
[347760955,1736095840265,-500.0,8.493e-05,2]
[347760957,1736095840275,-500.0,8.493e-05,2]
[347760959,1736095840284,-500.0,8.493e-05,2]
[347760960,1736095840293,-500.0,8.493e-05,2]
[347760962,1736095840303,-500.0,8.493e-05,2]
[347760964,1736095840314,-568.25,8.493e-05,2]
[347760966,1736095840324,-500.0,8.493e-05,2]
[347760968,1736095840333,-500.0,8.493e-05,2]
[347760970,1736095840343,-568.18,8.493e-05,2]
[347760972,1736095840352,-500.0,8.493e-05,2]
[347760974,1736095840362,-500.0,8.493e-05,2]
[347760975,1736095840371,-500.0,8.493e-05,2]
[347760977,1736095840381,-500.0,8.493e-05,2]
[347760979,1736095840390,-500.0,8.493e-05,2]
[347760980,1736095840399,-500.0,8.493e-05,2]
[347760981,1736095840409,-1727.67,8.493e-05,2]
[347760982,1736095840418,-500.0,8.493e-05,2]
[347760983,1736095840428,-779.3,8.493e-05,2]
[347760984,1736095840438,-607.64,8.493e-05,2]
[347760986,1736095840447,-500.0,8.493e-05,2]
[347760988,1736095840457,-500.0,8.493e-05,2]
[347760990,1736095840467,-500.0,8.493e-05,2]
[347760991,1736095840476,-500.0,8.493e-05,2]
[347760992,1736095840486,-500.0,8.493e-05,2]
[347760993,1736095840496,-500.0,8.493e-05,2]
[347760994,1736095840506,-782.01,8.493e-05,2]
[347760995,1736095840521,-500.0,8.493e-05,2]
[347760996,1736095840531,-1567.9,8.493e-05,2]
[347760997,1736095840541,-237.65,8.493e-05,2]
[347760999,1736095840551,-611.96,8.493e-05,2]
[347761000,1736095840561,-500.0,8.493e-05,2]
[347761002,1736095840570,-565.0,8.493e-05,2]
[347761004,1736095840580,-559.82,8.493e-05,2]
[347761007,1736095840589,-500.0,8.493e-05,2]
[347761009,1736095840599,-500.0,8.493e-05,2]
[347761011,1736095840608,-550.86,8.493e-05,2]
[347761012,1736095840617,-500.0,8.493e-05,2]
[347761014,1736095840628,-500.0,8.493e-05,2]
[347761016,1736095840638,-500.0,8.493e-05,2]
[347761018,1736095840647,-500.0,8.493e-05,2]
[347761021,1736095840657,-500.0,8.493e-05,2]
[347761023,1736095840667,-500.0,8.493e-05,2]
[347761025,1736095840676,-500.0,8.493e-05,2]
[347761027,1736095840686,-500.0,8.493e-05,2]
[347761029,1736095840695,-500.0,8.493e-05,2]
[347761031,1736095840705,-500.0,8.493e-05,2]
[347761033,1736095840714,-500.0,8.493e-05,2]
[347761035,1736095840723,-585.82,8.493e-05,2]
[347761037,1736095840733,-1088.08,8.493e-05,2]
[347761039,1736095840743,-500.0,8.493e-05,2]
[347761041,1736095840753,-500.0,8.493e-05,2]
[347761073,1736095841064,-500.0,8.493e-05,2]
[347761075,1736095841074,-500.0,8.493e-05,2]
[347761078,1736095841084,-500.0,8.493e-05,2]
[347761080,1736095841094,-500.0,8.493e-05,2]
[347761082,1736095841104,-500.0,8.493e-05,2]
[347761084,1736095841113,-500.0,8.493e-05,2]
[347761086,1736095841123,-1226.62,8.493e-05,2]
[347761088,1736095841133,-500.0,8.493e-05,2]
[347761090,1736095841142,-500.0,8.493e-05,2]
[347761092,1736095841152,-264.13,8.493e-05,2]
[347761094,1736095841162,-500.0,8.493e-05,2]
[347761096,1736095841172,-500.0,8.493e-05,2]
[347761098,1736095841181,-643.04,8.493e-05,2]
[347761100,1736095841191,-500.0,8.493e-05,2]
[347761102,1736095841201,-876.2,8.493e-05,2]
[347761104,1736095841211,-500.0,8.493e-05,2]
[347761106,1736095841221,-500.0,8.493e-05,2]
[347761108,1736095841231,-500.0,8.493e-05,2]
[347761110,1736095841240,-500.0,8.493e-05,2]
[347761112,1736095841251,-500.0,8.493e-05,2]
[347761114,1736095841261,-500.0,8.493e-05,2]
[347761116,1736095841271,-500.0,8.493e-05,2]
[347761118,1736095841280,-1553.97,8.493e-05,2]
[347761120,1736095841290,-1553.97,8.493e-05,2]
[347761122,1736095841299,-500.0,8.493e-05,2]
[347761124,1736095841309,-500.0,8.493e-05,2]
[347761126,1736095841319,-500.0,8.493e-05,2]
[347761128,1736095841330,-581.74,8.493e-05,2]
[347761130,1736095841340,-613.09,8.493e-05,2]
[347761132,1736095841350,-500.0,8.493e-05,2]
[347761135,1736095841361,-565.07,8.493e-05,2]
[347761137,1736095841371,-893.15,8.493e-05,2]
[347761139,1736095841382,-500.0,8.493e-05,2]
[347761141,1736095841391,-500.0,8.493e-05,2]
[347761143,1736095841402,-500.0,8.493e-05,2]
[347761145,1736095841412,-500.0,8.493e-05,2]
[347761147,1736095841422,-4529.45,8.493e-05,2]
[347761149,1736095841432,-4529.45,8.493e-05,2]
[347761151,1736095841442,-1847.31,8.493e-05,2]
[347761153,1736095841451,-1003.38,8.493e-05,2]
[347761155,1736095841461,-1602.72,8.493e-05,2]
[347761157,1736095841470,-951.44,8.493e-05,2]
[347761159,1736095841481,-500.0,8.493e-05,2]
[347761161,1736095841491,-500.0,8.493e-05,2]
[347761163,1736095841503,-962.87,8.493e-05,2]
[347761165,1736095841513,-153.1,8.493e-05,2]
[347761167,1736095841524,-500.0,8.493e-05,2]
[347761169,1736095841533,-500.0,8.493e-05,2]
[347761171,1736095841543,-500.0,8.493e-05,2]
[347761173,1736095841552,-500.0,8.493e-05,2]
[347761175,1736095841562,-500.0,8.493e-05,2]
[347761177,1736095841571,-500.0,8.493e-05,2]
[347761179,1736095841580,-729.82,8.493e-05,2]
[347761181,1736095841589,-500.0,8.493e-05,2]
[347761183,1736095841598,-500.0,8.493e-05,2]
[347761186,1736095841623,-500.0,8.493e-05,2]
[347761189,1736095841635,-500.0,8.493e-05,2]
[347761191,1736095841644,-500.0,8.493e-05,2]
[347761193,1736095841654,-500.0,8.493e-05,2]
[347761195,1736095841664,-540.7,8.493e-05,2]
[347761197,1736095841674,-348.58502252,8.493e-05,2]
[347761199,1736095841685,-500.0,8.493e-05,2]
[347761201,1736095841695,-500.0,8.493e-05,2]
[347761203,1736095841705,-500.0,8.493e-05,2]
[347761205,1736095841714,-500.0,8.493e-05,2]
[347761207,1736095841724,-500.0,8.493e-05,2]
[347761209,1736095841734,-500.0,8.493e-05,2]
[347761211,1736095841744,-500.0,8.493e-05,2]
[347761214,1736095841754,-500.0,8.493e-05,2]
[347761216,1736095841765,-2757.49,8.493e-05,2]
[347761218,1736095841775,-611.9,8.493e-05,2]
[347761220,1736095841785,-500.0,8.493e-05,2]
[347761222,1736095841796,-941.3,8.493e-05,2]
[347761224,1736095841811,-500.0,8.493e-05,2]
[347761226,1736095841821,-500.0,8.493e-05,2]
[347761228,1736095841831,-500.0,8.493e-05,2]
[347761230,1736095841843,-377.74755712,8.493e-05,2]
[347761232,1736095841852,-500.0,8.493e-05,2]
[347761234,1736095841863,-500.0,8.493e-05,2]
[347761236,1736095841873,-500.0,8.493e-05,2]
[347761238,1736095841884,-1398.91,8.493e-05,2]
[347761240,1736095841894,-500.0,8.493e-05,2]
[347761242,1736095841904,-500.0,8.493e-05,2]
[347761244,1736095841914,-500.0,8.493e-05,2]
[347761246,1736095841924,-816.85,8.493e-05,2]
[347761248,1736095841934,-1869.6,8.493e-05,2]
[347761251,1736095841944,-500.0,8.493e-05,2]
[347761253,1736095841954,-500.0,8.493e-05,2]
[347761255,1736095841965,-1890.04,8.493e-05,2]
[347761257,1736095841975,-1724.92,8.493e-05,2]
[347761259,1736095841985,-500.0,8.493e-05,2]
[347761261,1736095841997,-500.0,8.493e-05,2]
[347761263,1736095842007,-500.0,8.493e-05,2]
[347761265,1736095842018,-958.63,8.493e-05,2]
[347761267,1736095842028,-500.0,8.493e-05,2]
[347761269,1736095842038,-500.0,8.493e-05,2]
[347761271,1736095842048,-2593.99,8.493e-05,2]
[347761273,1736095842058,-500.0,8.493e-05,2]
[347761275,1736095842068,-500.0,8.493e-05,2]
[347761277,1736095842078,-3988.32,8.493e-05,2]
[347761279,1736095842089,-713.17,8.493e-05,2]
[347761282,1736095842100,-430.57281889,8.493e-05,2]
[347761285,1736095842119,-555.29,8.493e-05,2]
[347761287,1736095842131,-500.0,8.493e-05,2]
[347761289,1736095842141,-2839.12,8.493e-05,2]
[347761291,1736095842151,-589.98,8.493e-05,2]
[347761293,1736095842161,-4987.87,8.493e-05,2]
[347761295,1736095842172,-1013.43,8.493e-05,2]
[347761297,1736095842182,-707.78,8.493e-05,2]
[347761299,1736095842192,-500.0,8.493e-05,2]
[347761301,1736095842203,-3292.79,8.493e-05,2]
[347761304,1736095842214,-500.0,8.493e-05,2]
[347761306,1736095842225,-973.9,8.493e-05,2]
[347761308,1736095842235,-500.0,8.493e-05,2]
[347761310,1736095842246,-1219.44,8.493e-05,2]
[347761312,1736095842257,-500.0,8.493e-05,2]
[347761314,1736095842267,-2047.69,8.493e-05,2]
[347761316,1736095842279,-950.22,8.493e-05,2]
[347761318,1736095842290,-841.68,8.493e-05,2]
[347761320,1736095842301,-1957.92,8.493e-05,2]
[347761322,1736095842311,-1161.3,8.493e-05,2]
[347761324,1736095842321,-500.0,8.493e-05,2]
[347761327,1736095842331,-500.0,8.493e-05,2]
[347761329,1736095842342,-555.47,8.493e-05,2]
[347761331,1736095842352,-500.0,8.763e-05,2]
[347761333,1736095842362,-1856.37,8.763e-05,2]
[347761335,1736095842373,-500.0,8.763e-05,2]
[347761337,1736095842383,-1176.54,8.763e-05,2]
[347761339,1736095842393,-530.44,8.763e-05,2]
[347761341,1736095842403,-2814.45,8.763e-05,2]
[347761343,1736095842414,-500.0,8.763e-05,2]
[347761346,1736095842424,-769.38,8.763e-05,2]
[347761348,1736095842434,-500.0,8.763e-05,2]
[347761350,1736095842445,-675.21,8.763e-05,2]
[347761352,1736095842455,-1561.87,8.763e-05,2]
[347761354,1736095842466,-500.0,8.763e-05,2]
[347761356,1736095842476,-1751.39,8.763e-05,2]
[347761358,1736095842486,-576.37,8.763e-05,2]
[347761360,1736095842497,-711.82,8.764e-05,2]
[347761362,1736095842507,-777.32,8.764e-05,2]
[347761363,1736095842518,-584.27,8.764e-05,2]
[347761365,1736095842528,-1362.64,8.764e-05,2]
[347761367,1736095842538,-933.23,8.764e-05,2]
[347761369,1736095842548,-798.0,8.764e-05,2]
[347761371,1736095842558,-500.0,8.764e-05,2]
[347761374,1736095842569,-500.0,8.764e-05,2]
[347761376,1736095842579,-500.0,8.764e-05,2]
[347761378,1736095842590,-1406.53,8.764e-05,2]
[347761380,1736095842600,-500.0,8.764e-05,2]
[347761383,1736095842610,-500.0,8.764e-05,2]
[347761386,1736095842621,-500.0,8.764e-05,2]
[347761388,1736095842631,-500.0,8.764e-05,2]
[347761390,1736095842642,-547.09,8.764e-05,2]
[347761392,1736095842652,-500.0,8.764e-05,2]
[347761395,1736095842662,-2482.55,8.764e-05,2]
[347761397,1736095842673,-500.0,8.764e-05,2]
[347761399,1736095842683,-2577.14,8.764e-05,2]
[347761402,1736095842693,-500.0,8.764e-05,2]
[347761404,1736095842703,-992.6,8.764e-05,2]
[347761406,1736095842713,-500.0,8.764e-05,2]
[347761408,1736095842724,-500.0,8.764e-05,2]
[347761410,1736095842734,-1643.78,8.764e-05,2]
[347761412,1736095842744,-323.6066652,8.764e-05,2]
[347761414,1736095842756,-500.0,8.764e-05,2]
[347761416,1736095842767,-4470.01,8.764e-05,2]
[347761420,1736095842783,-1552.7,8.764e-05,2]
[347761421,1736095842795,-500.0,8.764e-05,2]
[347761422,1736095842807,-645.32,8.764e-05,2]
[347761423,1736095842818,-500.0,8.764e-05,2]
[347761424,1736095842828,-500.0,8.764e-05,2]
[347761425,1736095842838,-800.4,8.764e-05,2]
[347761426,1736095842851,-1519.25,8.764e-05,2]
[347761427,1736095842862,-501.13,8.764e-05,2]
[347761428,1736095842873,-500.0,8.764e-05,2]
[347761429,1736095842886,-500.0,8.764e-05,2]
[347761430,1736095842897,-500.0,8.764e-05,2]
[347761432,1736095842907,-1316.83,8.764e-05,2]
[347761434,1736095842918,-500.0,8.764e-05,2]
[347761436,1736095842930,-1065.02017,8.764e-05,2]
[347761438,1736095842940,-500.0,8.764e-05,2]
[347761440,1736095842950,-384.94981871,8.764e-05,2]
[347761442,1736095842960,-500.0,8.764e-05,2]
[347761444,1736095842972,-2870.07,8.764e-05,2]
[347761445,1736095842983,-500.0,8.764e-05,2]
[347761446,1736095842993,-2582.52,8.764e-05,2]
[347761447,1736095843006,-500.0,8.764e-05,2]
[347761448,1736095843016,-500.0,8.764e-05,2]
[347761449,1736095843026,-500.0,8.764e-05,2]
[347761450,1736095843036,-885.235852,8.764e-05,2]
[347761451,1736095843047,-1296.0,8.764e-05,2]
[347761452,1736095843058,-500.0,8.764e-05,2]
[347761454,1736095843068,-1263.86,8.764e-05,2]
[347761456,1736095843080,-559.66,8.764e-05,2]
[347761457,1736095843091,-1451.88,8.764e-05,2]
[347761458,1736095843102,-500.0,8.764e-05,2]
[347761459,1736095843112,-500.0,8.764e-05,2]
[347761460,1736095843127,-662.17,8.764e-05,2]
[347761461,1736095843138,-500.0,8.764e-05,2]
[347761462,1736095843149,-500.0,8.764e-05,2]
[347761463,1736095843161,-1117.81,8.764e-05,2]
[347761464,1736095843172,-564.52,8.764e-05,2]
[347761465,1736095843182,-500.0,8.764e-05,2]
[347761466,1736095843192,-500.0,8.764e-05,2]
[347761467,1736095843203,-500.0,8.764e-05,2]
[347761468,1736095843213,-883.45,8.764e-05,2]
[347761469,1736095843224,-500.0,8.764e-05,2]
[347761470,1736095843234,-500.0,8.764e-05,2]
[347761471,1736095843244,-500.0,8.764e-05,2]
[347761472,1736095843258,-500.0,8.764e-05,2]
[347761473,1736095843268,-500.0,8.764e-05,2]
[347761474,1736095843278,-2939.35,8.764e-05,2]
[347761475,1736095843288,-951.44,8.764e-05,2]
[347761476,1736095843298,-500.0,8.764e-05,2]
[347761477,1736095843308,-500.0,8.764e-05,2]
[347761478,1736095843319,-500.0,8.764e-05,2]
[347761479,1736095843329,-500.0,8.764e-05,2]
[347761480,1736095843339,-3218.91,8.765e-05,2]
[347761481,1736095843350,-1847.93,8.765e-05,2]
[347761482,1736095843360,-3406.35,8.765e-05,2]
[347761483,1736095843370,-548.05,8.765e-05,2]
[347761484,1736095843380,-3997.2,8.765e-05,2]
[347761485,1736095843390,-500.0,8.765e-05,2]
[347761486,1736095843400,-500.0,8.765e-05,2]
[347761487,1736095843410,-697.66,8.765e-05,2]
[347761488,1736095843420,-500.0,8.766e-05,2]
[347761489,1736095843430,-500.0,8.766e-05,2]
[347761490,1736095843440,-500.0,8.766e-05,2]
[347761491,1736095843451,-500.0,8.766e-05,2]
[347761492,1736095843460,-500.0,8.766e-05,2]
[347761493,1736095843470,-542.45,8.766e-05,2]
[347761494,1736095843481,-500.0,8.766e-05,2]
[347761495,1736095843491,-500.0,8.766e-05,2]
[347761496,1736095843502,-509.74,8.766e-05,2]
[347761497,1736095843512,-500.0,8.766e-05,2]
[347761499,1736095843522,-500.0,8.766e-05,2]
[347761501,1736095843532,-500.0,8.766e-05,2]
[347761503,1736095843542,-500.0,8.766e-05,2]
[347761505,1736095843552,-500.0,8.766e-05,2]
[347761507,1736095843562,-500.0,8.766e-05,2]
[347761510,1736095843572,-500.0,8.766e-05,2]
[347761512,1736095843582,-500.0,8.766e-05,2]
[347761514,1736095843592,-591.3,8.766e-05,2]
[347761516,1736095843604,-500.0,8.766e-05,2]